{"text_format":"1","workbook":"xlsx","n_sheets":1,"sheets":["Consumables order"],"not_rendered":{"charts":0,"images":1,"macros":0,"external_links":0,"defined_names":0,"comments":0,"pivot_tables":0},"unopened":[],"bounds":{"document_bytes":16777216,"sheet_cells":100000,"rows_first":2000,"rows_last":500,"rows_between":2000,"halvings":0,"cell_chars":16384,"cell_head_chars":4096},"cells_cut":0,"cells_raw":0,"read":"whole","date_system":"1900"}

{"sheet":"Consumables order","index":0,"n_rows":68,"n_cols":13,"rows_kept":68,"cut":false,"hidden":false,"merged":[[53,4,53,9],[50,4,50,9],[51,4,51,9],[52,4,52,9],[50,2,50,3],[51,2,51,3],[52,2,52,3],[54,2,54,3],[54,4,54,9],[37,4,37,9],[38,2,38,3],[43,2,43,3],[39,2,39,3],[38,4,38,9],[39,4,39,9],[43,4,43,9],[40,4,40,9],[41,4,41,9],[42,4,42,9],[40,2,40,3],[41,2,41,3],[42,2,42,3],[48,2,48,3],[33,4,33,9],[35,2,35,3],[35,4,35,9],[36,2,36,3],[36,4,36,9],[34,4,34,9],[34,2,34,3],[29,2,29,3],[29,4,29,9],[31,2,31,3],[31,4,31,9],[32,4,32,9],[30,4,30,9],[30,2,30,3],[1,2,6,12],[9,2,9,5],[9,6,9,12],[25,4,25,9],[28,2,28,3],[19,2,19,12],[20,2,20,3],[20,4,20,9],[24,2,24,3],[22,4,22,9],[23,4,23,9],[24,4,24,9],[11,2,13,5],[26,4,26,9],[27,4,27,9],[28,4,28,9],[63,2,63,12],[58,2,61,9],[66,2,66,12],[67,2,67,12],[10,2,10,5],[10,6,10,12],[15,2,15,5],[15,6,15,12],[16,2,17,5],[16,6,17,12],[26,2,26,3],[27,2,27,3],[25,2,25,3],[32,2,32,3],[33,2,33,3],[37,2,37,3],[11,6,13,12],[14,2,14,5],[22,2,22,3],[23,2,23,3],[21,2,21,3],[21,4,21,9],[44,2,44,3],[44,4,44,9],[45,2,45,3],[45,4,45,9],[46,2,46,3],[46,4,46,9],[49,4,49,9],[49,2,49,3],[48,4,48,9],[47,2,47,3],[47,4,47,9]]}
[]
[null,null,"Network Rail consumables order form "]
[]
[]
[]
[]
[]
[]
[]
[null,null,"Nominated contact name"]
[null,null,"Email address"]
[null,null,"Delivery address"]
[]
[]
[null,null,"Postcode"]
[null,null,"Billing address (if different)"]
[null,null,"P.O Number"]
[]
[]
[null,null,"Consumables"]
[null,null,"Product Code",null,"Item description",null,null,null,null,null,"Cost *","Qty","Total"]
[null,null,1900018,null,"Alcohol wipes (Pack - 100)",null,null,null,null,null,7,null,{"$f":"L22*K22","v":0}]
[null,null,1900019,null,"Blood lead surveillance - blood tubes - purple top (Pack - 100)",null,null,null,null,null,25,null,0]
[null,null,1900020,null,"Blood lead surveillance - 21 gauge combined needle and butterfly set (Pack - 50)",null,null,null,null,null,51,null,0]
[null,null,1900021,null,"Blood lead surveillance - 23 gauge combined needle and butterfly set (Pack - 50)",null,null,null,null,null,51,null,0]
[null,null,1900022,null,"Blood lead surveillance - disposable latex free tourniquet (Pack - 100)",null,null,null,null,null,38,null,0]
[null,null,1900023,null,"Cotton wool balls (Pack - 250)",null,null,null,null,null,4,null,0]
[null,null,1900024,null,"Couch roll (Pack - 9)",null,null,null,null,null,46.08,null,0]
[null,null,1900025,null,"Gloves - medium size (Pack - 100)",null,null,null,null,null,10,null,0]
[null,null,1900026,null,"Gloves - large size (Pack - 100)",null,null,null,null,null,10,null,{"$f":"L30*K30","v":0}]
[null,null,1900026,null,"Gloves - extra large (Pack - 100)",null,null,null,null,null,10,null,0]
[null,null,1900027,null,"Urinalysis dipsticks: glucose and protein (Pack - 100)",null,null,null,null,null,25,null,0]
[null,null,1900028,null,"Reister disposable specula - 4mm (Pack - 100)",null,null,null,null,null,11.63,null,0]
[null,null,"1900029-X1",null,"Otoscope bulb - Heine replacement 2.5v (Single)",null,null,null,null,null,25,null,0]
[null,null,1900029,null,"Otoscope bulbs - Heine replacement 2.5v (Pack - 06)",null,null,null,null,null,130,null,0]
[null,null,1900030,null,"Lancets - finger prick (Pack - 200)",null,null,null,null,null,42,null,0]
[null,null,1060011,null,"Bacterial Viral Filter mouthpieces for spirometers (Pack - 100)",null,null,null,null,null,106.3,null,0]
[null,null,1900031,null,"Peakflow mouthpieces (Pack - 200)",null,null,null,null,null,36.21,null,0]
[null,null,1900032,null,"Plasters - washproof spot plasters (Pack - 200)",null,null,null,null,null,8,null,0]
[null,null,1900033,null,"Razors - disposable (Pack - 100)",null,null,null,null,null,21,null,0]
[null,null,1900034,null,"Disposable urine cups (Pack - 300)",null,null,null,null,null,67,null,0]
[null,null,1900035,null,"GlucoRX meter test strips (Pack - 50)",null,null,null,null,null,30,null,0]
[null,null,1900036,null,"Drager Mouthpieces for Alcotest 5820/6810/6820/7510 (Pack - 250)",null,null,null,null,null,162,null,0]
[null,null,1900037,null,"Drager printer rolls",null,null,null,null,null,35,null,0]
[null,null,1900041,null,"ECG Electrodes (Pack - 500) ",null,null,null,null,null,49,null,0]
[null,null,1900042,null,"ECG Electrode gel (260g) ",null,null,null,null,null,4.75,null,0]
[null,null,1900043,null,"Blue dye pellets (Bottle - 100) ",null,null,null,null,null,39,null,0]
[null,null,1100000,null,"Clinell Wipes (Pack - 200)",null,null,null,null,null,11.78,null,0]
[null,null,1900039,null,"GlucoRx glucose control solution (4ml bottle)",null,null,null,null,null,2,null,0]
[null,null,1012009,null,"Pera-safe sterilising solution (81g)",null,null,null,null,null,32.78,null,0]
[null,null,8507542,null,"Re-usable turbine for Minispir ",null,null,null,null,null,309.75,null,0]
[null,null,1900054,null,"Quo test HbA1c control kit",null,null,null,null,null,160,null,0]
[null,null,1900046,null,"HbA1c TEST KITS (pack of 15)",null,null,null,null,null,88,null,0]
[null,null,1900052,null,"1.1L Antibacterial harfield jug            ",null,null,null,null,null,24.5,null,0]
[null,null,1900053,null,"Blue Antibacterial Jug lid",null,null,null,null,null,5,null,0]
[]
[null,null,"*All prices exclude delivery and VAT."]
[]
[null,null,"Delivery information\nOrders are normally despatched on the following day from receipt of order. \nAmplivox will advise if there is a delay with alternative solutions",null,null,null,null,null,null,null,"Sub Total",null,{"$f":"SUM(M22:M55)","v":0}]
[null,null,null,null,null,null,null,null,null,null,"Delivery",null,{"$f":"IF(M59<100,0,0)","v":0}]
[null,null,null,null,null,null,null,null,null,null,"VAT",null,{"$f":"((M59+M60)*1.2)-(M59+M60)","v":0}]
[null,null,null,null,null,null,null,null,null,null,"Total",null,{"$f":"M59+M60+M61","v":0}]
[]
[null,null,"Place an order\nTo place an order, please email the completed form to: accounts@amplivox.com\n"]
[]
[]
[null,null,"Amplivox Ltd, 3800 Parkside, Solihull Parkway, Birmingham Business Park,  \nBirmingham, West Midlands, B37 7YG, United Kingdom\n"]
[null,null,"www.amplivox.com  | + 44 (0)1865 880 846  |  sales@amplivox.com"]